[Event "Titled Tuesday Blitz March 22 Late 2022"]
[White "Delorme, Alban"]
[Black "Melkumyan, Hrant"]
[WhiteFideId "623636"]
[BlackFideId "13302485"]
[WhiteElo "2197"]
[BlackElo "2604"]
[Result "1/2-1/2"]
[Round "02"]
[TimeControl "180+1"]
[Date "2022.03.22"]
[WhiteClock "0:00:18"]
[BlackClock "0:00:20"]

1. d4 {[%clk 0:03:00]}  Nf6 {[%clk 0:02:59]} 2. Nf3 {[%clk 0:02:58]}  g6 {[%clk 0:02:59]} 3. g3 {[%clk 0:02:58]}  Bg7 {[%clk 0:03:00]} 4. Bg2 {[%clk 0:02:58]}  O-O {[%clk 0:03:00]} 5. O-O {[%clk 0:02:59]}  d6 {[%clk 0:03:01]} 6. a4 {[%clk 0:02:57]}  Nbd7 {[%clk 0:02:58]} 7. Re1 {[%clk 0:02:53]}  c6 {[%clk 0:02:54]} 8. Nc3 {[%clk 0:02:52]}  d5 {[%clk 0:02:50]} 9. Bf4 {[%clk 0:02:45]}  Re8 {[%clk 0:02:47]} 10. Qd2 {[%clk 0:02:45]}  Nh5 {[%clk 0:02:46]} 11. Bh6 {[%clk 0:02:44]}  Bh8 {[%clk 0:02:46]} 12. e4 {[%clk 0:02:43]}  dxe4 {[%clk 0:02:42]} 13. Nxe4 {[%clk 0:02:43]}  Nhf6 {[%clk 0:02:42]} 14. Nxf6+ {[%clk 0:02:40]}  Nxf6 {[%clk 0:02:41]} 15. c3 {[%clk 0:02:39]}  Bf5 {[%clk 0:02:39]} 16. Ne5 {[%clk 0:02:39]}  Nd7 {[%clk 0:02:34]} 17. Bf4 {[%clk 0:02:37]}  Nxe5 {[%clk 0:02:32]} 18. Bxe5 {[%clk 0:02:37]}  Bxe5 {[%clk 0:02:21]} 19. Rxe5 {[%clk 0:02:34]}  Qd6 {[%clk 0:02:21]} 20. a5 {[%clk 0:02:32]}  Rad8 {[%clk 0:02:20]} 21. Qe3 {[%clk 0:02:29]}  f6 {[%clk 0:02:16]} 22. Rc5 {[%clk 0:02:26]}  Bd7 {[%clk 0:01:57]} 23. Rc4 {[%clk 0:02:15]}  e6 {[%clk 0:01:39]} 24. Rb4 {[%clk 0:02:14]}  Qc7 {[%clk 0:01:33]} 25. Re1 {[%clk 0:02:11]}  Kg7 {[%clk 0:01:31]} 26. h4 {[%clk 0:02:10]}  Bc8 {[%clk 0:01:25]} 27. Ra4 {[%clk 0:02:09]}  e5 {[%clk 0:01:24]} 28. dxe5 {[%clk 0:02:05]}  Rxe5 {[%clk 0:01:22]} 29. Re4 {[%clk 0:02:06]}  Rxe4 {[%clk 0:01:12]} 30. Qxe4 {[%clk 0:02:05]}  Rf8 {[%clk 0:01:06]} 31. a6 {[%clk 0:02:00]}  bxa6 {[%clk 0:01:02]} 32. Qxc6 {[%clk 0:01:51]}  Qxc6 {[%clk 0:01:02]} 33. Re7+ {[%clk 0:01:49]}  Rf7 {[%clk 0:01:00]} 34. Rxf7+ {[%clk 0:01:48]}  Kxf7 {[%clk 0:01:01]} 35. Bxc6 {[%clk 0:01:49]}  Ke6 {[%clk 0:01:02]} 36. Kf1 {[%clk 0:01:48]}  g5 {[%clk 0:01:00]} 37. Ke2 {[%clk 0:01:44]}  Kf5 {[%clk 0:00:51]} 38. Kf3 {[%clk 0:01:39]}  h6 {[%clk 0:00:51]} 39. Be4+ {[%clk 0:01:34]}  Ke5 {[%clk 0:00:51]} 40. Ke3 {[%clk 0:01:34]}  a5 {[%clk 0:00:44]} 41. f4+ {[%clk 0:01:30]}  gxf4+ {[%clk 0:00:44]} 42. gxf4+ {[%clk 0:01:30]}  Kd6 {[%clk 0:00:45]} 43. Kd4 {[%clk 0:01:30]}  Be6 {[%clk 0:00:45]} 44. Bd3 {[%clk 0:01:26]}  Bf7 {[%clk 0:00:45]} 45. Bc4 {[%clk 0:01:24]}  Bg6 {[%clk 0:00:45]} 46. Bd3 {[%clk 0:01:23]}  Bf7 {[%clk 0:00:46]} 47. c4 {[%clk 0:01:22]}  Be6 {[%clk 0:00:39]} 48. c5+ {[%clk 0:01:18]}  Kc7 {[%clk 0:00:40]} 49. Bc4 {[%clk 0:01:15]}  Bg4 {[%clk 0:00:37]} 50. Bf7 {[%clk 0:01:07]}  Bh3 {[%clk 0:00:36]} 51. Kd5 {[%clk 0:01:02]}  Bg4 {[%clk 0:00:36]} 52. Be8 {[%clk 0:00:53]}  Bh3 {[%clk 0:00:35]} 53. c6 {[%clk 0:00:45]}  Bg4 {[%clk 0:00:31]} 54. Kc5 {[%clk 0:00:40]}  Bf3 {[%clk 0:00:20]} 55. Kb5 {[%clk 0:00:37]}  a4 {[%clk 0:00:21]} 56. Kc5 {[%clk 0:00:32]}  Be4 {[%clk 0:00:19]} 57. Bd7 {[%clk 0:00:32]}  Bf3 {[%clk 0:00:19]} 58. Be8 {[%clk 0:00:31]}  Be4 {[%clk 0:00:19]} 59. Bd7 {[%clk 0:00:18]}  Bf3 {[%clk 0:00:20]} 60. Be8 {[%clk 0:00:18]} 1/2-1/2


[Site "https://www.chess.com"]

[Event "Titled Tuesday Blitz March 22 Late 2022"]
[White "Demchenko, Anton"]
[Black "Silvestre, Christian"]
[WhiteFideId "4160258"]
[BlackFideId "30956269"]
[WhiteElo "2539"]
[BlackElo "2428"]
[Result "1-0"]
[Round "02"]
[TimeControl "180+1"]
[Date "2022.03.22"]
[WhiteClock "0:01:28"]
[BlackClock "0:00:12"]

1. e4 {[%clk 0:03:00]}  c5 {[%clk 0:02:57]} 2. Nf3 {[%clk 0:03:01]}  e6 {[%clk 0:02:53]} 3. d4 {[%clk 0:03:01]}  cxd4 {[%clk 0:02:53]} 4. Nxd4 {[%clk 0:03:01]}  a6 {[%clk 0:02:53]} 5. Bd3 {[%clk 0:03:01]}  Qc7 {[%clk 0:02:53]} 6. O-O {[%clk 0:03:00]}  Nf6 {[%clk 0:02:51]} 7. Qe2 {[%clk 0:03:00]}  d6 {[%clk 0:02:50]} 8. c4 {[%clk 0:03:01]}  b6 {[%clk 0:02:49]} 9. Nc3 {[%clk 0:03:01]}  Bb7 {[%clk 0:02:49]} 10. f4 {[%clk 0:03:01]}  Nbd7 {[%clk 0:02:49]} 11. b4 {[%clk 0:02:57]}  Be7 {[%clk 0:02:44]} 12. f5 {[%clk 0:02:55]}  e5 {[%clk 0:02:37]} 13. Nb3 {[%clk 0:02:52]}  h5 {[%clk 0:02:28]} 14. Kh1 {[%clk 0:02:50]}  b5 {[%clk 0:01:56]} 15. Nd5 {[%clk 0:02:44]}  Bxd5 {[%clk 0:01:41]} 16. cxd5 {[%clk 0:02:45]}  Nb6 {[%clk 0:01:34]} 17. Na5 {[%clk 0:02:44]}  Na4 {[%clk 0:01:32]} 18. Bd2 {[%clk 0:02:42]}  Rc8 {[%clk 0:01:15]} 19. Rac1 {[%clk 0:02:40]}  Qd7 {[%clk 0:01:14]} 20. Nc6 {[%clk 0:02:39]}  Nb2 {[%clk 0:00:56]} 21. Bb1 {[%clk 0:02:38]}  Nc4 {[%clk 0:00:55]} 22. Bg5 {[%clk 0:02:32]}  h4 {[%clk 0:00:50]} 23. Bxf6 {[%clk 0:01:55]}  Bxf6 {[%clk 0:00:51]} 24. Bd3 {[%clk 0:01:55]}  Nb6 {[%clk 0:00:50]} 25. Qg4 {[%clk 0:01:45]}  Rc7 {[%clk 0:00:34]} 26. Rc2 {[%clk 0:01:44]}  O-O {[%clk 0:00:32]} 27. g3 {[%clk 0:01:42]}  hxg3 {[%clk 0:00:31]} 28. hxg3 {[%clk 0:01:43]}  g6 {[%clk 0:00:23]} 29. Rh2 {[%clk 0:01:30]}  Bg7 {[%clk 0:00:16]} 30. Qh4 {[%clk 0:01:28]}  Rfc8 {[%clk 0:00:12]} 31. f6 {[%clk 0:01:28]} 1-0


[Site "https://www.chess.com"]

[Event "Titled Tuesday Blitz March 22 Late 2022"]
[White "Donchenko, Alexander"]
[Black "Manukyan, Sargis A."]
[WhiteFideId "24603295"]
[BlackFideId "13303970"]
[WhiteElo "2539"]
[BlackElo "2187"]
[Result "1/2-1/2"]
[Round "02"]
[TimeControl "180+1"]
[Date "2022.03.22"]
[WhiteClock "0:00:25"]
[BlackClock "0:00:22"]

1. d4 {[%clk 0:03:00]}  d5 {[%clk 0:02:59]} 2. c4 {[%clk 0:03:00]}  e6 {[%clk 0:03:00]} 3. Nf3 {[%clk 0:03:01]}  Nf6 {[%clk 0:03:00]} 4. g3 {[%clk 0:03:01]}  Be7 {[%clk 0:03:01]} 5. Bg2 {[%clk 0:03:02]}  O-O {[%clk 0:03:01]} 6. O-O {[%clk 0:03:03]}  dxc4 {[%clk 0:02:59]} 7. Qc2 {[%clk 0:03:03]}  a6 {[%clk 0:02:59]} 8. a4 {[%clk 0:03:03]}  Bd7 {[%clk 0:02:58]} 9. Qxc4 {[%clk 0:03:03]}  Bc6 {[%clk 0:02:58]} 10. Bg5 {[%clk 0:03:03]}  b5 {[%clk 0:02:58]} 11. Qc2 {[%clk 0:02:53]}  Be4 {[%clk 0:02:58]} 12. Qc1 {[%clk 0:02:52]}  b4 {[%clk 0:02:55]} 13. Nbd2 {[%clk 0:02:50]}  Bd5 {[%clk 0:02:54]} 14. Qc2 {[%clk 0:02:49]}  h6 {[%clk 0:02:49]} 15. Bf4 {[%clk 0:02:39]}  c5 {[%clk 0:02:42]} 16. dxc5 {[%clk 0:02:31]}  Nbd7 {[%clk 0:02:42]} 17. c6 {[%clk 0:02:30]}  Rc8 {[%clk 0:02:33]} 18. c7 {[%clk 0:02:30]}  Qe8 {[%clk 0:02:31]} 19. Nb3 {[%clk 0:01:57]}  Nh5 {[%clk 0:02:09]} 20. Bd2 {[%clk 0:01:16]}  Bd6 {[%clk 0:02:03]} 21. e4 {[%clk 0:01:14]}  Ba8 {[%clk 0:01:52]} 22. Qd3 {[%clk 0:01:12]}  Qe7 {[%clk 0:01:50]} 23. Rfd1 {[%clk 0:01:05]}  Bxc7 {[%clk 0:01:41]} 24. Qxa6 {[%clk 0:01:01]}  Bxe4 {[%clk 0:01:36]} 25. Nfd4 {[%clk 0:01:00]}  Bxg2 {[%clk 0:01:35]} 26. Kxg2 {[%clk 0:01:01]}  Ne5 {[%clk 0:01:19]} 27. Qe2 {[%clk 0:01:00]}  Nf6 {[%clk 0:01:17]} 28. Bf4 {[%clk 0:00:57]}  Ng6 {[%clk 0:01:15]} 29. Bxc7 {[%clk 0:00:51]}  Rxc7 {[%clk 0:01:16]} 30. a5 {[%clk 0:00:51]}  Nd5 {[%clk 0:01:09]} 31. Qf3 {[%clk 0:00:42]}  Qg5 {[%clk 0:00:54]} 32. Kh1 {[%clk 0:00:42]}  Rfc8 {[%clk 0:00:49]} 33. a6 {[%clk 0:00:41]}  Ra7 {[%clk 0:00:39]} 34. h4 {[%clk 0:00:34]}  Nxh4 {[%clk 0:00:37]} 35. gxh4 {[%clk 0:00:35]}  Qxh4+ {[%clk 0:00:37]} 36. Kg1 {[%clk 0:00:35]}  Nf4 {[%clk 0:00:35]} 37. Nb5 {[%clk 0:00:31]}  Raa8 {[%clk 0:00:31]} 38. a7 {[%clk 0:00:27]}  Qg5+ {[%clk 0:00:31]} 39. Kh2 {[%clk 0:00:26]}  Qh4+ {[%clk 0:00:31]} 40. Kg1 {[%clk 0:00:26]}  Qg5+ {[%clk 0:00:31]} 41. Kh1 {[%clk 0:00:24]}  Qh4+ {[%clk 0:00:22]} 42. Kg1 {[%clk 0:00:25]} 1/2-1/2


[Site "https://www.chess.com"]

[Event "Titled Tuesday Blitz March 22 Late 2022"]
[White "Garriga Cazorla, Pere"]
[Black "Grischuk, Alexander"]
[WhiteFideId "32011601"]
[BlackFideId "4126025"]
[WhiteElo "2458"]
[BlackElo "2762"]
[Result "1-0"]
[Round "02"]
[TimeControl "180+1"]
[Date "2022.03.22"]
[WhiteClock "0:01:24"]
[BlackClock "0:00:50"]

1. d4 {[%clk 0:03:00]}  e6 {[%clk 0:03:00]} 2. c4 {[%clk 0:03:00]}  b6 {[%clk 0:03:00]} 3. e4 {[%clk 0:03:00]}  Bb4+ {[%clk 0:02:59]} 4. Bd2 {[%clk 0:02:58]}  Bxd2+ {[%clk 0:03:00]} 5. Qxd2 {[%clk 0:02:59]}  d5 {[%clk 0:03:00]} 6. cxd5 {[%clk 0:02:59]}  exd5 {[%clk 0:03:00]} 7. e5 {[%clk 0:02:57]}  Ne7 {[%clk 0:03:01]} 8. f4 {[%clk 0:02:56]}  O-O {[%clk 0:02:59]} 9. Nf3 {[%clk 0:02:56]}  c5 {[%clk 0:02:59]} 10. Be2 {[%clk 0:02:55]}  Nbc6 {[%clk 0:02:59]} 11. O-O {[%clk 0:02:55]}  Bg4 {[%clk 0:02:57]} 12. dxc5 {[%clk 0:02:55]}  bxc5 {[%clk 0:02:58]} 13. h3 {[%clk 0:02:54]}  Bxf3 {[%clk 0:02:35]} 14. Bxf3 {[%clk 0:02:55]}  Nd4 {[%clk 0:02:36]} 15. Nc3 {[%clk 0:02:51]}  Nxf3+ {[%clk 0:02:36]} 16. Rxf3 {[%clk 0:02:51]}  d4 {[%clk 0:02:37]} 17. Ne4 {[%clk 0:02:51]}  Qd5 {[%clk 0:02:36]} 18. Re1 {[%clk 0:02:43]}  Nf5 {[%clk 0:02:27]} 19. b3 {[%clk 0:02:27]}  Rfd8 {[%clk 0:02:24]} 20. Rd3 {[%clk 0:02:21]}  a5 {[%clk 0:02:20]} 21. Qd1 {[%clk 0:02:10]}  Rac8 {[%clk 0:01:44]} 22. Qg4 {[%clk 0:01:50]}  Qe6 {[%clk 0:01:44]} 23. Rc1 {[%clk 0:01:51]}  Rd5 {[%clk 0:01:33]} 24. Nf6+ {[%clk 0:01:45]}  Kh8 {[%clk 0:00:57]} 25. Nxd5 {[%clk 0:01:44]}  h6 {[%clk 0:00:58]} 26. Nb6 {[%clk 0:01:36]}  Rb8 {[%clk 0:00:54]} 27. Nc4 {[%clk 0:01:34]}  a4 {[%clk 0:00:54]} 28. Nd6 {[%clk 0:01:30]}  g6 {[%clk 0:00:54]} 29. Nxf5 {[%clk 0:01:30]}  gxf5 {[%clk 0:00:55]} 30. Qh4 {[%clk 0:01:28]}  axb3 {[%clk 0:00:54]} 31. axb3 {[%clk 0:01:28]}  Rb5 {[%clk 0:00:50]} 32. Qd8+ {[%clk 0:01:24]} 1-0


[Site "https://www.chess.com"]

[Event "Titled Tuesday Blitz March 22 Late 2022"]
[White "Godzwon, Iwo"]
[Black "Lopez Del Alamo, Antonio"]
[WhiteFideId "21802483"]
[BlackFideId "2227339"]
[WhiteElo "2201"]
[BlackElo "2082"]
[Result "1-0"]
[Round "02"]
[TimeControl "180+1"]
[Date "2022.03.22"]
[WhiteClock "0:01:18"]
[BlackClock "0:00:02"]

1. e4 {[%clk 0:03:00]}  c5 {[%clk 0:02:59]} 2. Nf3 {[%clk 0:03:01]}  e6 {[%clk 0:03:00]} 3. d4 {[%clk 0:03:01]}  cxd4 {[%clk 0:03:00]} 4. Nxd4 {[%clk 0:03:02]}  Nf6 {[%clk 0:03:01]} 5. Nc3 {[%clk 0:03:01]}  Nc6 {[%clk 0:03:02]} 6. Ndb5 {[%clk 0:03:00]}  d6 {[%clk 0:03:01]} 7. Bf4 {[%clk 0:03:00]}  e5 {[%clk 0:03:02]} 8. Bg5 {[%clk 0:03:01]}  a6 {[%clk 0:03:02]} 9. Bxf6 {[%clk 0:02:59]}  gxf6 {[%clk 0:03:01]} 10. Na3 {[%clk 0:03:00]}  b5 {[%clk 0:03:01]} 11. Nd5 {[%clk 0:03:00]}  Bg7 {[%clk 0:03:02]} 12. g3 {[%clk 0:03:00]}  Ne7 {[%clk 0:03:02]} 13. c4 {[%clk 0:02:56]}  O-O {[%clk 0:02:59]} 14. Bg2 {[%clk 0:02:53]}  Nxd5 {[%clk 0:02:57]} 15. cxd5 {[%clk 0:02:53]}  f5 {[%clk 0:02:50]} 16. exf5 {[%clk 0:02:51]}  Bxf5 {[%clk 0:02:47]} 17. O-O {[%clk 0:02:51]}  Bg6 {[%clk 0:02:43]} 18. Nc2 {[%clk 0:02:51]}  f5 {[%clk 0:02:42]} 19. Nb4 {[%clk 0:02:47]}  f4 {[%clk 0:02:31]} 20. Nc6 {[%clk 0:02:45]}  Qd7 {[%clk 0:02:21]} 21. Qe2 {[%clk 0:02:32]}  Rae8 {[%clk 0:01:35]} 22. Be4 {[%clk 0:02:14]}  Bxe4 {[%clk 0:01:03]} 23. Qxe4 {[%clk 0:02:15]}  f3 {[%clk 0:01:03]} 24. Kh1 {[%clk 0:02:15]}  Rf6 {[%clk 0:00:53]} 25. Rg1 {[%clk 0:01:58]}  Rh6 {[%clk 0:00:39]} 26. Qxf3 {[%clk 0:01:50]}  e4 {[%clk 0:00:38]} 27. Qe2 {[%clk 0:01:49]}  Qh3 {[%clk 0:00:25]} 28. Rg2 {[%clk 0:01:49]}  Rf8 {[%clk 0:00:17]} 29. Qxe4 {[%clk 0:01:47]}  Kh8 {[%clk 0:00:17]} 30. Qe2 {[%clk 0:01:42]}  Qf5 {[%clk 0:00:16]} 31. Rd1 {[%clk 0:01:40]}  Be5 {[%clk 0:00:10]} 32. f4 {[%clk 0:01:38]}  Bg7 {[%clk 0:00:10]} 33. Qc2 {[%clk 0:01:37]}  Qh3 {[%clk 0:00:09]} 34. b3 {[%clk 0:01:33]}  Rg6 {[%clk 0:00:10]} 35. Qe2 {[%clk 0:01:27]}  Rh6 {[%clk 0:00:06]} 36. Qe4 {[%clk 0:01:20]}  Rhf6 {[%clk 0:00:02]} 37. Nd4 {[%clk 0:01:19]}  Rxf4 {[%clk 0:00:02]} 38. gxf4 {[%clk 0:01:18]}  Bxd4 {[%clk 0:00:02]} 39. Qxd4+ {[%clk 0:01:17]}  Rf6 {[%clk 0:00:02]} 40. Qxf6# {[%clk 0:01:18]} 1-0


[Site "https://www.chess.com"]

[Event "Titled Tuesday Blitz March 22 Late 2022"]
[White "Goltsev, Dmitry"]
[Black "Yoo, Christopher Woojin"]
[WhiteFideId "24176710"]
[BlackFideId "30909694"]
[WhiteElo "2273"]
[BlackElo "2105"]
[Result "0-1"]
[Round "02"]
[TimeControl "180+1"]
[Date "2022.03.22"]
[WhiteClock "0:00:02"]
[BlackClock "0:00:03"]

1. e4 {[%clk 0:03:00]}  c5 {[%clk 0:02:58]} 2. Nf3 {[%clk 0:03:01]}  e6 {[%clk 0:02:58]} 3. d4 {[%clk 0:03:02]}  cxd4 {[%clk 0:02:59]} 4. Nxd4 {[%clk 0:03:03]}  Nf6 {[%clk 0:03:00]} 5. Nc3 {[%clk 0:03:03]}  Nc6 {[%clk 0:03:00]} 6. Be2 {[%clk 0:03:04]}  d6 {[%clk 0:02:54]} 7. O-O {[%clk 0:03:04]}  Bd7 {[%clk 0:02:54]} 8. Bg5 {[%clk 0:03:05]}  a6 {[%clk 0:02:47]} 9. Qd2 {[%clk 0:03:05]}  Be7 {[%clk 0:02:45]} 10. Rad1 {[%clk 0:03:05]}  O-O {[%clk 0:02:43]} 11. f4 {[%clk 0:03:04]}  Qc7 {[%clk 0:02:37]} 12. Nxc6 {[%clk 0:03:02]}  Bxc6 {[%clk 0:02:36]} 13. Bf3 {[%clk 0:03:01]}  Rfd8 {[%clk 0:02:26]} 14. Kh1 {[%clk 0:03:00]}  b5 {[%clk 0:02:25]} 15. a3 {[%clk 0:02:49]}  a5 {[%clk 0:02:23]} 16. Rfe1 {[%clk 0:02:45]}  b4 {[%clk 0:02:21]} 17. Nb1 {[%clk 0:02:44]}  d5 {[%clk 0:02:09]} 18. e5 {[%clk 0:02:40]}  Ne4 {[%clk 0:02:08]} 19. Bxe4 {[%clk 0:02:33]}  dxe4 {[%clk 0:02:09]} 20. Qe3 {[%clk 0:02:33]}  Bxg5 {[%clk 0:02:08]} 21. fxg5 {[%clk 0:02:33]}  Qxe5 {[%clk 0:01:56]} 22. c3 {[%clk 0:01:54]}  Qb5 {[%clk 0:01:33]} 23. axb4 {[%clk 0:01:47]}  axb4 {[%clk 0:01:32]} 24. Rc1 {[%clk 0:01:45]}  Rd3 {[%clk 0:01:03]} 25. Qf4 {[%clk 0:01:43]}  e3 {[%clk 0:00:53]} 26. cxb4 {[%clk 0:01:41]}  Qd5 {[%clk 0:00:50]} 27. Rg1 {[%clk 0:01:37]}  Rd8 {[%clk 0:00:32]} 28. Rce1 {[%clk 0:01:27]}  Qd4 {[%clk 0:00:21]} 29. Qc7 {[%clk 0:01:20]}  Qc4 {[%clk 0:00:10]} 30. Qg3 {[%clk 0:01:16]}  Qxb4 {[%clk 0:00:08]} 31. Re2 {[%clk 0:01:11]}  Qd4 {[%clk 0:00:04]} 32. Nc3 {[%clk 0:01:08]}  e5 {[%clk 0:00:02]} 33. h4 {[%clk 0:01:05]}  Qf4 {[%clk 0:00:02]} 34. Qh3 {[%clk 0:01:02]}  Bd7 {[%clk 0:00:02]} 35. Qh2 {[%clk 0:00:57]}  Bg4 {[%clk 0:00:03]} 36. Ree1 {[%clk 0:00:53]}  Rd2 {[%clk 0:00:03]} 37. b4 {[%clk 0:00:50]}  Qxb4 {[%clk 0:00:02]} 38. Rxe3 {[%clk 0:00:48]}  Qd4 {[%clk 0:00:01]} 39. Qxe5 {[%clk 0:00:47]}  Qxe5 {[%clk 0:00:02]} 40. Rxe5 {[%clk 0:00:47]}  Be6 {[%clk 0:00:02]} 41. Rf1 {[%clk 0:00:42]}  R2d4 {[%clk 0:00:03]} 42. Ne4 {[%clk 0:00:39]}  R8d5 {[%clk 0:00:03]} 43. Rb1 {[%clk 0:00:34]}  h6 {[%clk 0:00:03]} 44. g6 {[%clk 0:00:33]}  Kf8 {[%clk 0:00:01]} 45. Rb8+ {[%clk 0:00:31]}  Ke7 {[%clk 0:00:01]} 46. Rb7+ {[%clk 0:00:30]}  Rd7 {[%clk 0:00:02]} 47. Rxd7+ {[%clk 0:00:28]}  Rxd7 {[%clk 0:00:02]} 48. Nc5 {[%clk 0:00:24]}  Rd1+ {[%clk 0:00:03]} 49. Kh2 {[%clk 0:00:23]}  Kd6 {[%clk 0:00:01]} 50. Nxe6 {[%clk 0:00:15]}  fxe6 {[%clk 0:00:01]} 51. Ra5 {[%clk 0:00:14]}  Ke7 {[%clk 0:00:01]} 52. h5 {[%clk 0:00:12]}  Kf6 {[%clk 0:00:01]} 53. g4 {[%clk 0:00:12]}  Rd5 {[%clk 0:00:01]} 54. Ra7 {[%clk 0:00:11]}  Kg5 {[%clk 0:00:02]} 55. Rxg7 {[%clk 0:00:10]}  Kxg4 {[%clk 0:00:02]} 56. Ra7 {[%clk 0:00:08]}  Rxh5+ {[%clk 0:00:02]} 57. Kg2 {[%clk 0:00:08]}  Rg5 {[%clk 0:00:03]} 58. g7 {[%clk 0:00:09]}  Kf5+ {[%clk 0:00:03]} 59. Kf3 {[%clk 0:00:09]}  Kf6 {[%clk 0:00:04]} 60. Kf4 {[%clk 0:00:05]}  Rxg7 {[%clk 0:00:04]} 61. Ra8 {[%clk 0:00:06]}  e5+ {[%clk 0:00:04]} 62. Ke4 {[%clk 0:00:05]}  Rg4+ {[%clk 0:00:04]} 63. Kf3 {[%clk 0:00:06]}  Rf4+ {[%clk 0:00:03]} 64. Kg3 {[%clk 0:00:06]}  h5 {[%clk 0:00:02]} 65. Rh8 {[%clk 0:00:06]}  h4+ {[%clk 0:00:02]} 66. Kh3 {[%clk 0:00:06]}  Kf5 {[%clk 0:00:03]} 67. Rf8+ {[%clk 0:00:05]}  Ke4 {[%clk 0:00:03]} 68. Ra8 {[%clk 0:00:06]}  Ke3 {[%clk 0:00:02]} 69. Ra3+ {[%clk 0:00:06]}  Kf2 {[%clk 0:00:02]} 70. Ra2+ {[%clk 0:00:05]}  Kf3 {[%clk 0:00:02]} 71. Ra3+ {[%clk 0:00:05]}  Ke4 {[%clk 0:00:03]} 72. Ra4+ {[%clk 0:00:05]}  Kf5 {[%clk 0:00:03]} 73. Ra5 {[%clk 0:00:06]}  Rf3+ {[%clk 0:00:02]} 74. Kxh4 {[%clk 0:00:05]}  Kf4 {[%clk 0:00:03]} 75. Ra8 {[%clk 0:00:04]}  e4 {[%clk 0:00:03]} 76. Re8 {[%clk 0:00:04]}  e3 {[%clk 0:00:03]} 77. Rf8+ {[%clk 0:00:05]}  Ke4 {[%clk 0:00:03]} 78. Re8+ {[%clk 0:00:06]}  Kd3 {[%clk 0:00:03]} 79. Kg4 {[%clk 0:00:07]}  Rf7 {[%clk 0:00:04]} 80. Rd8+ {[%clk 0:00:07]}  Kc2 {[%clk 0:00:03]} 81. Rc8+ {[%clk 0:00:06]}  Kd2 {[%clk 0:00:03]} 82. Rd8+ {[%clk 0:00:07]}  Ke1 {[%clk 0:00:04]} 83. Kg3 {[%clk 0:00:07]}  e2 {[%clk 0:00:04]} 84. Kg2 {[%clk 0:00:08]}  Rg7+ {[%clk 0:00:05]} 85. Kh2 {[%clk 0:00:08]}  Rg5 {[%clk 0:00:05]} 86. Rd7 {[%clk 0:00:07]}  Kf2 {[%clk 0:00:05]} 87. Rf7+ {[%clk 0:00:06]}  Ke3 {[%clk 0:00:06]} 88. Re7+ {[%clk 0:00:06]}  Kf3 {[%clk 0:00:06]} 89. Rf7+ {[%clk 0:00:06]}  Ke4 {[%clk 0:00:06]} 90. Rf1 {[%clk 0:00:02]}  Rh5+ {[%clk 0:00:02]} 91. Kg3 {[%clk 0:00:02]}  exf1=Q {[%clk 0:00:02]} 92. Kg4 {[%clk 0:00:02]}  Qf3# {[%clk 0:00:03]} 0-1


[Site "https://www.chess.com"]

[Event "Titled Tuesday Blitz March 22 Late 2022"]
[White "Goryachkina, Aleksandra"]
[Black "Smirnov, Pavel"]
[WhiteFideId "4147103"]
[BlackFideId "4123425"]
[WhiteElo "2426"]
[BlackElo "2545"]
[Result "1-0"]
[Round "02"]
[TimeControl "180+1"]
[Date "2022.03.22"]
[WhiteClock "0:00:04"]
[BlackClock "0:00:09"]

1. e4 {[%clk 0:03:00]}  e5 {[%clk 0:02:57]} 2. Nf3 {[%clk 0:02:59]}  Nc6 {[%clk 0:02:56]} 3. d4 {[%clk 0:02:59]}  exd4 {[%clk 0:02:56]} 4. Bc4 {[%clk 0:02:59]}  Nf6 {[%clk 0:02:53]} 5. O-O {[%clk 0:02:59]}  Nxe4 {[%clk 0:02:49]} 6. Re1 {[%clk 0:02:59]}  d5 {[%clk 0:02:49]} 7. Bxd5 {[%clk 0:02:59]}  Qxd5 {[%clk 0:02:50]} 8. Nc3 {[%clk 0:02:59]}  Qd7 {[%clk 0:02:50]} 9. Nxe4 {[%clk 0:02:57]}  Be7 {[%clk 0:02:50]} 10. Bg5 {[%clk 0:02:55]}  O-O {[%clk 0:02:50]} 11. Bxe7 {[%clk 0:02:52]}  Qxe7 {[%clk 0:02:51]} 12. Nxd4 {[%clk 0:02:51]}  Bd7 {[%clk 0:02:51]} 13. Qh5 {[%clk 0:02:00]}  h6 {[%clk 0:02:19]} 14. Nc5 {[%clk 0:01:49]}  Qd8 {[%clk 0:02:04]} 15. Rad1 {[%clk 0:01:38]}  Nxd4 {[%clk 0:01:52]} 16. Rxd4 {[%clk 0:01:37]}  Re8 {[%clk 0:01:52]} 17. Red1 {[%clk 0:01:33]}  Qe7 {[%clk 0:01:51]} 18. h3 {[%clk 0:01:25]}  Bc6 {[%clk 0:01:50]} 19. Nd3 {[%clk 0:01:00]}  Rad8 {[%clk 0:01:44]} 20. Rxd8 {[%clk 0:00:51]}  Rxd8 {[%clk 0:01:42]} 21. Re1 {[%clk 0:00:50]}  Qf6 {[%clk 0:01:01]} 22. Re3 {[%clk 0:00:38]}  Rd5 {[%clk 0:00:56]} 23. Qe2 {[%clk 0:00:29]}  Rg5 {[%clk 0:00:53]} 24. f3 {[%clk 0:00:29]}  Kh7 {[%clk 0:00:49]} 25. Ne5 {[%clk 0:00:28]}  h5 {[%clk 0:00:33]} 26. Qd3+ {[%clk 0:00:24]}  g6 {[%clk 0:00:30]} 27. Qe2 {[%clk 0:00:19]}  Rf5 {[%clk 0:00:26]} 28. Nxf7 {[%clk 0:00:16]}  Bd5 {[%clk 0:00:22]} 29. Ne5 {[%clk 0:00:13]}  Qb6 {[%clk 0:00:17]} 30. Kh1 {[%clk 0:00:12]}  Qxb2 {[%clk 0:00:16]} 31. Nd3 {[%clk 0:00:09]}  Qa1+ {[%clk 0:00:16]} 32. Kh2 {[%clk 0:00:09]}  Qg7 {[%clk 0:00:17]} 33. Re7 {[%clk 0:00:07]}  Rf7 {[%clk 0:00:17]} 34. Re5 {[%clk 0:00:05]}  Bxa2 {[%clk 0:00:16]} 35. Qe4 {[%clk 0:00:04]}  c6 {[%clk 0:00:15]} 36. Rxh5+ {[%clk 0:00:04]}  Kg8 {[%clk 0:00:15]} 37. Rg5 {[%clk 0:00:05]}  Rf6 {[%clk 0:00:14]} 38. Ne5 {[%clk 0:00:04]}  Bf7 {[%clk 0:00:09]} 39. f4 {[%clk 0:00:04]} 1-0


[Site "https://www.chess.com"]

[Event "Titled Tuesday Blitz March 22 Late 2022"]
[White "Hartikainen, Jarmo"]
[Black "Milosevic, Milos"]
[WhiteFideId "503134"]
[BlackFideId "964875"]
[WhiteElo "2106"]
[BlackElo "2237"]
[Result "0-1"]
[Round "02"]
[TimeControl "180+1"]
[Date "2022.03.22"]
[WhiteClock "0:00:15"]
[BlackClock "0:01:44"]

1. e4 {[%clk 0:02:59]}  c5 {[%clk 0:02:59]} 2. Nf3 {[%clk 0:02:59]}  Nc6 {[%clk 0:02:58]} 3. d4 {[%clk 0:02:59]}  cxd4 {[%clk 0:02:59]} 4. Nxd4 {[%clk 0:03:00]}  Nf6 {[%clk 0:02:59]} 5. Nc3 {[%clk 0:03:00]}  e5 {[%clk 0:02:58]} 6. Ndb5 {[%clk 0:03:00]}  d6 {[%clk 0:02:58]} 7. Bg5 {[%clk 0:03:00]}  Be7 {[%clk 0:02:57]} 8. Bxf6 {[%clk 0:02:55]}  Bxf6 {[%clk 0:02:58]} 9. Nd5 {[%clk 0:02:54]}  O-O {[%clk 0:02:49]} 10. Nbc7 {[%clk 0:02:52]}  Rb8 {[%clk 0:02:48]} 11. Nxf6+ {[%clk 0:02:47]}  Qxf6 {[%clk 0:02:44]} 12. Bd3 {[%clk 0:02:42]}  Qd8 {[%clk 0:02:42]} 13. Nd5 {[%clk 0:02:41]}  Ne7 {[%clk 0:02:41]} 14. c4 {[%clk 0:02:35]}  Nxd5 {[%clk 0:02:39]} 15. cxd5 {[%clk 0:02:32]}  f5 {[%clk 0:02:38]} 16. exf5 {[%clk 0:02:02]}  Bxf5 {[%clk 0:02:37]} 17. O-O {[%clk 0:02:02]}  Bxd3 {[%clk 0:02:32]} 18. Qxd3 {[%clk 0:02:02]}  Qb6 {[%clk 0:02:31]} 19. b3 {[%clk 0:01:48]}  Rf4 {[%clk 0:02:28]} 20. Rad1 {[%clk 0:01:24]}  Rd4 {[%clk 0:02:23]} 21. Qh3 {[%clk 0:01:21]}  Rf4 {[%clk 0:01:59]} 22. Qe6+ {[%clk 0:01:02]}  Kh8 {[%clk 0:01:59]} 23. Rc1 {[%clk 0:01:02]}  Rbf8 {[%clk 0:01:55]} 24. Rc8 {[%clk 0:00:55]}  Rxf2 {[%clk 0:01:52]} 25. Qxd6 {[%clk 0:00:15]}  Rxf1# {[%clk 0:01:44]} 0-1


[Site "https://www.chess.com"]